Workbook

Sheet 整合资金来源 (汇总)
A1: 2019年共和县统筹整合使用财政涉农资金整合来源汇总统计表
A2: 2019年3月15日编制 金额：万元
A3: 序号 | B3: 整合资金来源名称 | C3: 纳入整合 规模数 | D3: 计划整合资金数 | E3: 其中： | J3: 实际到位资金整合数 （2月底）
E4: 中央财政 | F4: 省财政 | G4: 州财政 | H4: 县财政 | I4: 其他
A5: 1 | B5: 财政专项扶贫资金 | C5: 14917.12 | D5: =SUM('整合资金来源 (计划明细表)'!D6) -> 14917.12 | E5: =SUM('整合资金来源 (计划明细表)'!F6) -> 9949.7 | F5: =SUM('整合资金来源 (计划明细表)'!G6) -> 0 | G5: =SUM('整合资金来源 (计划明细表)'!H6) -> 0 | H5: =SUM('整合资金来源 (计划明细表)'!I6) -> 4967.42 | I5: =SUM('整合资金来源 (计划明细表)'!J6) -> 0 | J5: =SUM('整合资金来源 (计划明细表)'!K6) -> 14917.12
A6: 2 | B6: 水利发展资金 | C6: 903 | D6: =SUM('整合资金来源 (计划明细表)'!D16) -> 903 | E6: =SUM('整合资金来源 (计划明细表)'!F16) -> 903 | F6: =SUM('整合资金来源 (计划明细表)'!G16) -> 0 | G6: =SUM('整合资金来源 (计划明细表)'!H16) -> 0 | H6: =SUM('整合资金来源 (计划明细表)'!I16) -> 0 | I6: =SUM('整合资金来源 (计划明细表)'!J16) -> 0 | J6: =SUM('整合资金来源 (计划明细表)'!K16) -> 903
A7: 3 | B7: 农业生产发展资金 | C7: 836.9 | D7: =SUM('整合资金来源 (计划明细表)'!D20) -> 836.9 | E7: =SUM('整合资金来源 (计划明细表)'!F20) -> 636.9 | F7: =SUM('整合资金来源 (计划明细表)'!G20) -> 0 | G7: =SUM('整合资金来源 (计划明细表)'!H20) -> 0 | H7: =SUM('整合资金来源 (计划明细表)'!I20) -> 200 | I7: =SUM('整合资金来源 (计划明细表)'!J20) -> 0 | J7: =SUM('整合资金来源 (计划明细表)'!K20) -> 836.9
A8: 4 | B8: 林业改革资金 | C8: 9242.64 | D8: =SUM('整合资金来源 (计划明细表)'!D24) -> 9242.64 | E8: =SUM('整合资金来源 (计划明细表)'!F24) -> 8742.64 | F8: =SUM('整合资金来源 (计划明细表)'!G24) -> 0 | G8: =SUM('整合资金来源 (计划明细表)'!H24) -> 0 | H8: =SUM('整合资金来源 (计划明细表)'!I24) -> 500 | I8: =SUM('整合资金来源 (计划明细表)'!J24) -> 0 | J8: =SUM('整合资金来源 (计划明细表)'!K24) -> 9242.64
A9: 5 | B9: 农业综合开发补助资金 | C9: 0 | D9: =SUM('整合资金来源 (计划明细表)'!D31) -> 0 | E9: =SUM('整合资金来源 (计划明细表)'!F31) -> 0 | F9: =SUM('整合资金来源 (计划明细表)'!G31) -> 0 | G9: =SUM('整合资金来源 (计划明细表)'!H31) -> 0 | H9: =SUM('整合资金来源 (计划明细表)'!I31) -> 0 | I9: =SUM('整合资金来源 (计划明细表)'!J31) -> 0 | J9: =SUM('整合资金来源 (计划明细表)'!K31) -> 0
A10: 6 | B10: 农村综合改革转移支付 | C10: 700 | D10: =SUM('整合资金来源 (计划明细表)'!D35) -> 700 | E10: =SUM('整合资金来源 (计划明细表)'!F35) -> 0 | F10: =SUM('整合资金来源 (计划明细表)'!G35) -> 0 | G10: =SUM('整合资金来源 (计划明细表)'!H35) -> 0 | H10: =SUM('整合资金来源 (计划明细表)'!I35) -> 700 | I10: =SUM('整合资金来源 (计划明细表)'!J35) -> 0 | J10: =SUM('整合资金来源 (计划明细表)'!K35) -> 700
A11: 7 | B11: 新增土地有偿使用费安排的高标准农田建设资金 | C11: 0 | D11: =SUM('整合资金来源 (计划明细表)'!D39) -> 0 | E11: =SUM('整合资金来源 (计划明细表)'!F39) -> 0 | F11: =SUM('整合资金来源 (计划明细表)'!G39) -> 0 | G11: =SUM('整合资金来源 (计划明细表)'!H39) -> 0 | H11: =SUM('整合资金来源 (计划明细表)'!I39) -> 0 | I11: =SUM('整合资金来源 (计划明细表)'!J39) -> 0 | J11: =SUM('整合资金来源 (计划明细表)'!K39) -> 0
A12: 8 | B12: 农村环境连片整治资金 | C12: 300 | D12: =SUM('整合资金来源 (计划明细表)'!D42) -> 300 | E12: =SUM('整合资金来源 (计划明细表)'!F42) -> 0 | F12: =SUM('整合资金来源 (计划明细表)'!G42) -> 0 | G12: =SUM('整合资金来源 (计划明细表)'!H42) -> 0 | H12: =SUM('整合资金来源 (计划明细表)'!I42) -> 300 | I12: =SUM('整合资金来源 (计划明细表)'!J42) -> 0 | J12: =SUM('整合资金来源 (计划明细表)'!K42) -> 300
A13: 9 | B13: 车辆购置税收入补助地方用于公路建设项目资金
A14: 10 | B14: 农村危房改造补助资金 | C14: 246.08 | D14: =SUM('整合资金来源 (计划明细表)'!D47) -> 246.08 | E14: =SUM('整合资金来源 (计划明细表)'!F47) -> 196.48 | F14: =SUM('整合资金来源 (计划明细表)'!G47) -> 0 | G14: =SUM('整合资金来源 (计划明细表)'!H47) -> 0 | H14: =SUM('整合资金来源 (计划明细表)'!I47) -> 49.6 | I14: =SUM('整合资金来源 (计划明细表)'!J47) -> 0 | J14: =SUM('整合资金来源 (计划明细表)'!K47) -> 246.08
A15: 11 | B15: 中央专项彩票公益金支持扶贫资金
A16: 12 | B16: 产粮大县奖励资金
A17: 13 | B17: 生猪（牛羊）调出大县奖励资金（省级统筹部分） | C17: 0 | D17: =SUM('整合资金来源 (计划明细表)'!D56) -> 0 | E17: =SUM('整合资金来源 (计划明细表)'!F56) -> 0 | F17: =SUM('整合资金来源 (计划明细表)'!G56) -> 0 | G17: =SUM('整合资金来源 (计划明细表)'!H56) -> 0 | H17: =SUM('整合资金来源 (计划明细表)'!I56) -> 0 | I17: =SUM('整合资金来源 (计划明细表)'!J56) -> 0 | J17: =SUM('整合资金来源 (计划明细表)'!K56) -> 0
A18: 14 | B18: 农业资源生态保护资金（对农民的直接补贴除外）
A19: 15 | B19: 服务业专项资金（支持农村现代流通服务网络工程部分）
A20: 16 | B20: 旅游发展基金 | C20: 0 | D20: =SUM('整合资金来源 (计划明细表)'!D63) -> 0 | E20: =SUM('整合资金来源 (计划明细表)'!F63) -> 0 | F20: =SUM('整合资金来源 (计划明细表)'!G63) -> 0 | G20: =SUM('整合资金来源 (计划明细表)'!H63) -> 0 | H20: =SUM('整合资金来源 (计划明细表)'!I63) -> 0 | I20: =SUM('整合资金来源 (计划明细表)'!J63) -> 0 | J20: =SUM('整合资金来源 (计划明细表)'!K63) -> 0
A21: 17 | B21: 中央预算内投资用于“三农”部分资金 | C21: 0 | D21: =SUM('整合资金来源 (计划明细表)'!D66) -> 0 | E21: =SUM('整合资金来源 (计划明细表)'!F66) -> 0 | F21: =SUM('整合资金来源 (计划明细表)'!G66) -> 0 | G21: =SUM('整合资金来源 (计划明细表)'!H66) -> 0 | H21: =SUM('整合资金来源 (计划明细表)'!I66) -> 0 | I21: =SUM('整合资金来源 (计划明细表)'!J66) -> 0
A22: 18 | B22: 水资源
A23: 19 | B23: 森林植被恢复费
A24: 20 | B24: 供销社改革发展资金 | C24: 0 | D24: =SUM('整合资金来源 (计划明细表)'!D85) -> 0 | E24: =SUM('整合资金来源 (计划明细表)'!F85) -> 0 | F24: =SUM('整合资金来源 (计划明细表)'!G85) -> 0 | G24: =SUM('整合资金来源 (计划明细表)'!H85) -> 0 | H24: =SUM('整合资金来源 (计划明细表)'!I85) -> 0 | I24: =SUM('整合资金来源 (计划明细表)'!J85) -> 0
A25: 21 | B25: 美丽乡村建设资金 | C25: 0 | D25: =SUM('整合资金来源 (计划明细表)'!D87) -> 0 | E25: =SUM('整合资金来源 (计划明细表)'!F87) -> 0 | F25: =SUM('整合资金来源 (计划明细表)'!G87) -> 0 | G25: =SUM('整合资金来源 (计划明细表)'!H87) -> 0 | H25: =SUM('整合资金来源 (计划明细表)'!I87) -> 0 | I25: =SUM('整合资金来源 (计划明细表)'!J87) -> 0
A26: 22 | B26: 教育、文化涉农资金 | C26: 0 | D26: =SUM('整合资金来源 (计划明细表)'!D89) -> 0 | E26: =SUM('整合资金来源 (计划明细表)'!F89) -> 0 | F26: =SUM('整合资金来源 (计划明细表)'!G89) -> 0 | G26: =SUM('整合资金来源 (计划明细表)'!H89) -> 0 | H26: =SUM('整合资金来源 (计划明细表)'!I89) -> 0 | I26: =SUM('整合资金来源 (计划明细表)'!J89) -> 0
A27: 23 | B27: 医疗、卫生涉农资金 | C27: =SUM('整合资金来源 (计划明细表)'!D91) -> 0 | D27: =SUM('整合资金来源 (计划明细表)'!E91) -> 0 | E27: =SUM('整合资金来源 (计划明细表)'!F91) -> 0 | F27: =SUM('整合资金来源 (计划明细表)'!G91) -> 0 | G27: =SUM('整合资金来源 (计划明细表)'!H91) -> 0 | H27: =SUM('整合资金来源 (计划明细表)'!I91) -> 0 | I27: =SUM('整合资金来源 (计划明细表)'!J91) -> 0 | J27: =SUM('整合资金来源 (计划明细表)'!K91) -> 0
A28: 24 | B28: 库区移民后期扶持 | F28: =SUM('整合资金来源 (计划明细表)'!G93) -> 0
A29: 25 | B29: 通过政府性融资平台取得的涉农贷款
A30: 26 | B30: 其他涉农资金
B31: 合计 | C31: =SUM(C5:C30) -> 27145.74 | D31: =SUM(D5:D30) -> 27145.74 | E31: =SUM(E5:E30) -> 20428.72 | F31: 0 | G31: 0 | H31: 6717.02 | I31: 0 | J31: 27145.74

Sheet 整合资金来源 (计划明细表)
A1: 附件：
A2: 2019年共和县统筹整合使用财政涉农资金整合来源分类统计表
L3: 金额单位：万元
A4: 序号 | B4: 整合资金来源名称 | C4: 纳入整合 规模数 2018年基数 | D4: 计划整合资金数 | E4: 当年预算或已实际到位数 | F4: 其中： | K4: 实际到位资金整合数 （2月底） | L4: 整合实施扶贫 任务目标
F5: 中央财政 | G5: 省财政 | H5: 州财政 | I5: 县财政 | J5: 其他
A6: 一 | B6: 财政专项扶贫资金 | C6: =SUM(C7:C15) -> 0 | D6: 14917.12 | E6: 14917.12 | F6: 9949.7 | G6: 0 | H6: 0 | I6: 4967.42 | J6: 0 | K6: 14917.12 | L6: ——
A7: 1 | B7: 县级财政预算安排 | D7: 4967.42 | E7: =SUM(F7:J7) -> 4967.42 | I7: 4967.42 | K7: 4967.42 | L7: 产业和基础设施扶贫
A8: 2 | B8: 财政扶贫切块资金 | D8: 8811 | E8: =SUM(F8:J8) -> 8811 | F8: 8811 | K8: 8811 | L8: 产业发展扶贫
A9: 3 | B9: 异地搬迁补助资金（农发行贷款） | D9: 0 | E9: 0 | L9: 基础设施建设
A10: 4 | B10: 少数民族发展资金 | D10: 628.7 | E10: 628.7 | F10: =635-6.3 -> 628.7 | K10: 628.7 | L10: 产业和基础设施扶贫
A11: 5 | B11: 以工代赈资金 | D11: 510 | E11: 510 | F11: 510 | K11: 510 | L11: 基础设施建设
A12: 6 | B12: 国有贫困林场补助资金 | D12: 0 | E12: 0 | L12: 农村生态环境改善
A13: 7 | B13: 省级扶贫及奖励资金 | D13: 0 | E13: 0 | L13: 产业和基础设施扶贫
A14: 8 | B14: 州财政安排的专项资金 | D14: 0 | E14: 0 | L14: 产业发展扶贫
A15: 9 | B15: 江苏援建资金危旧房改造 | D15: 0 | E15: 0 | L15: 农村生态环境改善
A16: 二 | B16: 水利发展资金 | C16: =SUM(C17:C19) -> 0 | D16: 903 | E16: 903 | F16: 903 | G16: 0 | H16: 0 | I16: 0 | J16: 0 | K16: 903 | L16: ——
A17: 1 | B17: 县级财政预算安排 | D17: 0 | E17: =SUM(F17:J17) -> 0 | L17: 农村水利扶贫
A18: 2 | B18: 水利发展资金（切块） | D18: 903 | E18: =SUM(F18:J18) -> 903 | F18: 903 | K18: 903 | L18: 农村水利扶贫
A19: 4 | B19: 江苏援建资金安排 | D19: 0 | E19: =SUM(F19:J19) -> 0 | L19: 农村水利扶贫
A20: 三 | B20: 农业生产发展资金 | C20: =SUM(C21:C23) -> 0 | D20: 836.9 | E20: 836.9 | F20: 636.9 | G20: 0 | H20: 0 | I20: 200 | J20: 0 | K20: 836.9 | L20: ——
A21: 1 | B21: 县级财政安排 | D21: 200 | E21: =SUM(F21:J21) -> 200 | I21: 200 | K21: 200 | L21: 农业生产发展扶贫
A22: 2 | B22: 农业发展切块资金 | D22: 636.9 | E22: =SUM(F22:J22) -> 636.9 | F22: 636.9 | K22: 636.9 | L22: 农业生产发展扶贫
A24: 四 | B24: 林业改革资金 | C24: =SUM(C25:C30) -> 0 | D24: 9242.64 | E24: 9242.64 | F24: 8742.64 | G24: 0 | H24: 0 | I24: 500 | J24: 0 | K24: 9242.64 | L24: ——
A25: 1 | B25: 县级财政预算安排 | D25: 500 | E25: =SUM(F25:J25) -> 500 | I25: 500 | K25: 500 | L25: 农村生态环境改善
A26: 2 | B26: 森林生态效益补偿资金 | D26: 2077 | E26: =SUM(F26:J26) -> 2077 | F26: 2077 | K26: 2077 | L26: 农村生态环境改善
A27: 3 | B27: 天然林保护工程 | D27: 199 | E27: =SUM(F27:J27) -> 199 | F27: 199 | K27: 199 | L27: 农村生态环境改善
A28: 4 | B28: 林业发展切块资金 | D28: 6466.64 | E28: =SUM(F28:J28) -> 6466.64 | F28: 6466.64 | K28: 6466.64 | L28: 农村生态环境改善
A29: 6 | B29: 州级财政安排 | D29: 0 | E29: =SUM(F29:J29) -> 0
A31: 五 | B31: 农业综合开发补助资金 | C31: =SUM(C32:C34) -> 0 | D31: 0 | E31: 0 | F31: 0 | G31: 0 | H31: 0 | I31: 0 | J31: 0 | K31: 0 | L31: ——
A32: 2 | B32: 土地治理项目资金 | D32: 0 | E32: =SUM(F32:J32) -> 0
A33: 3 | B33: 产业化发展项目资金 | D33: 0 | E33: 0
A34: 5 | B34: 产业化贴息资金 | D34: 0 | E34: 0
A35: 六 | B35: 农村综合改革转移支付资金 | C35: =SUM(C36:C38) -> 1746 | D35: 700 | E35: 700 | F35: 0 | G35: 0 | H35: 0 | I35: 700 | J35: 0 | K35: 700 | L35: ——
A36: 1 | B36: 县级财政预算安排 | C36: 700 | D36: 700 | E36: 700 | I36: 700 | K36: 700 | L36: 贫困区居住条件改善
A37: 2 | B37: 农村综合改革（含一事一议奖补） | C37: 1046 | D37: 0 | E37: 0
A39: 七 | B39: 新增土地有偿使用费安排的高标准农田建设资金 | C39: =SUM(C40:C41) -> 0 | D39: 0 | E39: 0 | F39: 0 | G39: 0 | H39: 0 | I39: 0 | J39: 0 | K39: 0 | L39: ——
A40: 1 | B40: 中央财政土地有偿使用费安排的项目 | D40: 0 | E40: =SUM(F40:J40) -> 0
A41: 2 | D41: 0 | E41: =SUM(F41:J41) -> 0
A42: 八 | B42: 农村环境连片整治资金 | C42: =SUM(C43:C44) -> 0 | D42: 300 | E42: 300 | F42: 0 | G42: 0 | H42: 0 | I42: 300 | J42: 0 | K42: 300 | L42: ——
A43: 1 | B43: 农村人居环境整治、草原全域无垃圾及村级环境卫生整治项目 | E43: =SUM(F43:J43) -> 0
A44: 2 | B44: “厕所革命”专项 | D44: 300 | E44: =SUM(F44:J44) -> 300 | I44: 300 | K44: 300 | L44: 贫困区居住条件改善
A45: 九 | B45: 车辆购置税收入补助地方用于公路建设项目资金 | C45: =SUM(C46:C46) -> 0 | D45: 0 | E45: 0 | F45: 0 | G45: 0 | H45: 0 | I45: 0 | J45: 0 | K45: 0 | L45: ——
A46: 1 | D46: 0 | E46: =SUM(F46:J46) -> 0
A47: 十 | B47: 农村危房改造补助资金 | C47: =SUM(C48:C50) -> 0 | D47: =SUM(D48:D51) -> 246.08 | E47: =SUM(E48:E51) -> 246.08 | F47: 196.48 | G47: 0 | H47: 0 | I47: 49.6 | J47: 0 | K47: 246.08 | L47: ——
A48: 1 | B48: 县级财政预算安排 | D48: 49.6 | E48: =SUM(F48:J48) -> 49.6 | I48: 49.6 | K48: 49.6 | L48: 贫困区居住条件改善
A49: 2 | B49: 中央及省级危房改造补助资金 | D49: 196.48 | E49: =SUM(F49:J49) -> 196.48 | F49: 196.48 | K49: 196.48 | L49: 贫困区居住条件改善
A50: 3 | D50: 0 | E50: =SUM(F50:J50) -> 0
A51: 3
A52: 十一 | B52: 中央专项彩票公益金支持扶贫资金 | C52: =SUM(C53:C53) -> 0 | D52: 0 | E52: 0 | F52: 0 | G52: 0 | H52: 0 | I52: 0 | J52: 0 | K52: 0 | L52: ——
D53: 0 | E53: =SUM(F53:J53) -> 0
A54: 十二 | B54: 产粮大县奖励资金 | C54: =SUM(C55:C55) -> 0 | D54: 0 | E54: 0 | F54: 0 | G54: 0 | H54: 0 | I54: 0 | J54: 0 | K54: 0 | L54: ——
A55: 1 | B55: 产粮大县奖励资金计划 | D55: 0 | E55: =SUM(F55:J55) -> 0
A56: 十三 | B56: 生猪（牛羊）调出大县奖励资金（省级统筹部分） | C56: =SUM(C57:C58) -> 0 | D56: 0 | E56: 0 | F56: 0 | G56: 0 | H56: 0 | I56: 0 | J56: 0 | K56: 0 | L56: ——
A57: 1 | B57: 牛羊调出大县奖励 | D57: 0 | E57: =SUM(F57:J57) -> 0
D58: 0 | E58: =SUM(F58:J58) -> 0
A59: 十四 | B59: 农业资源生态保护资金 （对农民的直接补贴除外） | C59: =SUM(C60:C60) -> 0 | D59: 0 | E59: 0 | F59: 0 | G59: 0 | H59: 0 | I59: 0 | J59: 0 | K59: 0 | L59: ——
A60: 1 | D60: 0 | E60: =SUM(F60:J60) -> 0
A61: 十五 | B61: 服务业专项资金（支持农村现代流通服务网络工程部分） | C61: =SUM(C62:C62) -> 0 | D61: 0 | E61: 0 | F61: 0 | G61: 0 | H61: 0 | I61: 0 | J61: 0 | K61: 0 | L61: ——
A62: 3 | D62: 0 | E62: =SUM(F62:J62) -> 0
A63: 十六 | B63: 旅游发展基金 | C63: =SUM(C64:C65) -> 0 | D63: 0 | E63: 0 | F63: 0 | G63: 0 | H63: 0 | I63: 0 | J63: 0 | K63: 0 | L63: ——
A64: 2 | B64: 旅游发展基金补助项目 | D64: 0 | E64: =SUM(F64:J64) -> 0
A66: 十七 | B66: 中央预算内投资用于“三农”部分资金 | C66: =SUM(C67:C80) -> 0 | D66: 0 | E66: 0 | F66: 0 | G66: 0 | H66: 0 | I66: 0 | J66: 0 | K66: 0 | L66: ——
A67: 1 | B67: 农村扶贫公路中央基建投资预算 | D67: 0 | E67: =SUM(F67:J67) -> 0
A68: 2 | B68: 中小河流治理工程中央基建投资预算 | D68: 0 | E68: =SUM(F68:J68) -> 0
A69: 3 | B69: 全国新增千亿斤粮食生产能力规划田间工程中央投资预算 | D69: 0 | E69: =SUM(F69:J69) -> 0
A70: 4 | B70: 农村电网改造升级工程中央基建投资预算 | D70: 0 | E70: 0
A71: 5 | B71: 以工代赈示范工程中央基建投资预算 | D71: 0 | E71: 0
A72: 6 | B72: 农村饮水安全巩固提升中央基建投资 | D72: 0 | E72: 0
A73: 7 | B73: 规模化大型沼气工程中央基建预算投资 | D73: 0 | E73: 0
A74: 8 | B74: 退牧还草中央基建投资预算 | D74: 0 | E74: 0
A75: 9 | B75: 水文基础设施中央基建投资预算 | D75: 0 | E75: 0
A76: 10 | B76: 种养业循环一体化项目中央基建投资预算 | D76: 0 | E76: 0
A77: 11 | B77: 水生态治理中小河流治理等其他水利工程中央基建投资预算 | D77: 0 | E77: 0
A78: 12 | B78: 重点区域排涝能力建设中央基建投资预算 | D78: 0 | E78: 0
A79: 13 | B79: 中央预算内投资用于“三农”建设的其他资金 | D79: 0 | E79: 0
D80: 0 | E80: 0
A81: 十八 | B81: 水资源费 | C81: =SUM(C82:C82) -> 0 | D81: 0 | E81: 0 | F81: 0 | G81: 0 | H81: 0 | I81: 0 | J81: 0 | K81: 0 | L81: ——
A82: 1 | D82: 0 | E82: =SUM(F82:J82) -> 0
A83: 十九 | B83: 森林植被恢复费 | C83: =SUM(C84:C84) -> 0 | D83: 0 | E83: 0 | F83: 0 | G83: 0 | H83: 0 | I83: 0 | J83: 0 | K83: 0 | L83: ——
A84: 1 | D84: 0 | E84: =SUM(F84:J84) -> 0
A85: 二十 | B85: 供销社改革发展资金 | C85: =SUM(C86:C86) -> 0 | D85: 0 | E85: 0 | F85: 0 | G85: 0 | H85: 0 | I85: 0 | J85: 0 | K85: 0 | L85: ——
A86: 1 | B86: 供销社改革发展资金 | D86: 0 | E86: =SUM(F86:J86) -> 0
A87: 二十一 | B87: 美丽乡村建设资金 | C87: =SUM(C88:C88) -> 0 | D87: 0 | E87: 0 | F87: 0 | G87: 0 | H87: 0 | I87: 0 | J87: 0 | K87: 0
A88: 1 | B88: 2018年美丽乡村建设资金 | D88: 0 | E88: =SUM(F88:J88) -> 0
A89: 二十二 | B89: 教育、文化涉农资金 | C89: =SUM(C90:C90) -> 0 | D89: 0 | E89: 0 | F89: 0 | G89: 0 | H89: 0 | I89: 0 | J89: 0 | K89: 0
A90: 1 | D90: 0 | E90: =SUM(F90:J90) -> 0
A91: 二十三 | B91: 医疗卫生涉农资金 | C91: =SUM(C92:C92) -> 0 | E91: 0 | F91: 0 | G91: 0 | H91: 0 | I91: 0 | J91: 0 | K91: 0
A92: 1
A93: 二十四 | B93: 库区移民后期扶持 | C93: =SUM(C94:C94) -> 0 | D93: 0 | E93: 0 | F93: 0 | G93: 0 | H93: 0 | I93: 0 | J93: 0 | K93: 0
D94: 0 | E94: =SUM(F94:J94) -> 0
A95: 二十五 | B95: 政府性融资平台涉农贷款 | C95: =SUM(#REF!) -> 
A96: 二十六 | B96: 其他涉农资金 | C96: =SUM(#REF!) -> 
B97: 合计 | C97: =SUM(C96,C95,C93,C91,C89,C87,C85,C83,C81,C66,C63,C61,C59,C56,C54,C52,C47,C45,C42,C39,C35,C31,C24,C20,C16,C6) ->  | D97: =SUM(D96,D95,D93,D91,D89,D87,D85,D83,D81,D66,D63,D61,D59,D56,D54,D52,D47,D45,D42,D39,D35,D31,D24,D20,D16,D6) -> 27145.74 | E97: =SUM(E96,E95,E93,E91,E89,E87,E85,E83,E81,E66,E63,E61,E59,E56,E54,E52,E47,E45,E42,E39,E35,E31,E24,E20,E16,E6) -> 27145.74 | F97: 20428.72 | G97: 0 | H97: 0 | I97: 6717.02 | J97: 0 | K97: 27145.74 | L97: ——

Sheet 2019年项目资金明细表
A1: 2019年共和县统筹整合财政涉农资金安排使用项目资金明细表
H2: 单位：万元
A3: 序号 | B3: 整合资金支出类别和 项目名称 | C3: 安排整合 资金 | D3: 实际投向： | G3: 项目建设实施主要内容 | H3: 实施 部门 | I3: 实施 地点
D4: 农村基础 设施 | E4: 农业生产 发展 | F4: 农村卫生文化教育
A5: 一 | B5: 农牧产业发展扶贫 | C5: =SUM(D5:F5) -> 8614.02 | D5: =SUM(D6:D17) -> 0 | E5: =SUM(E6:E17) -> 8614.02 | F5: =SUM(F6:F17) -> 0 | G5: 结合精准扶贫规划目标和下达资金建设目标任务安排 | H5: —— | I5: ——
A6: 1-1 | B6: 倒淌河镇东卫村精准扶贫产业基地 | C6: 418.7 | E6: 418.7 | G6: 扶贫产业楼 | H6: 扶贫局 | I6: 倒淌河镇
A7: 1-2 | B7: 非贫困村村集体经济发展项目 | C7: 3540 | E7: 3540 | G7: 59个村村集体经济发展 | H7: 扶贫局
A8: 1-3 | B8: 贫困村光伏扶贫项目缺口 | C8: 851 | E8: 851 | G8: 40个贫困村 | H8: 扶贫局
A9: 1-4 | B9: 县级支农资金 | C9: 500 | E9: 500 | H9: 农牧和科技局
A10: 1-5 | B10: 2019年县级支农菜篮子资金 | C10: 300 | E10: 300 | H10: 农牧和科技局
A11: 1-6 | B11: 粮改饲补贴资金 | C11: 244 | E11: 244 | G11: 种植饲草2.2万亩 | H11: 农牧和科技局
A12: 1-7 | B12: 新型职业农牧民培育项目 | C12: 65.5 | E12: 65.5 | G12: 培育农牧民252人 | H12: 农牧和科技局
A13: 1-8 | B13: 基层农技推广体系建设项目 | C13: =SUM(D13:F13) -> 70 | E13: 70 | G13: 推广高效技术3项，建设示范基地2个以上，信息化率95%以上。 | H13: 农牧和科技局
A14: 1-9 | B14: 扶持村集体经济发展项目 | C14: 196 | E14: 196 | H14: 农牧和科技局
A15: 1-10 | B15: 耕地保护与质量提升项目 | C15: 61.4 | E15: 61.4 | H15: 农牧和科技局
A16: 1-11 | B16: 乡村振兴战略 | C16: =SUM(D16:F16) -> 200 | E16: 200 | H16: 农牧和科技局
A17: 1-12 | B17: 县级扶贫资金 | C17: 2167.42 | E17: 2167.42 | H17: 扶贫局
A18: 二 | B18: 农村水利、交通、公益等基础设施建设扶贫 | C18: 2614 | D18: =SUM(D19:D28) -> 1711 | E18: =SUM(E19:E28) -> 903 | F18: =SUM(F19:F28) -> 0 | G18: 结合精准扶贫规划目标和下达资金建设目标任务安排 | H18: —— | I18: ——
A19: 2-1 | B19: 恰卜恰镇上梅村至加隆台村村级道路硬化项目 | C19: 70 | D19: 70 | G19: 2公里道路硬化（路面宽4米） | H19: 县民宗局
A20: 2-2 | B20: 石乃亥镇尕日村道路硬化项目 | C20: 40 | D20: 40 | G20: 1公里道路硬化（路面宽4米） | H20: 县民宗局
A21: 2-3 | B21: 切吉乡祁加村机井 | C21: 100 | D21: 100 | G21: 1眼机井 | H21: 县民宗局
A22: 2-4 | B22: 农村综合改革“一事一议”项目 | C22: 700 | D22: 700 | H22: 县财政局
A23: 2-5 | B23: 2019年倒淌河镇、石乃亥镇环湖公路内侧搬迁群众安全饮水工程 | C23: 291 | D23: 291 | H23: 县水利局
A24: 2-6 | B24: 共和县恰卜恰城镇周边（下梅村）小流域水土保持综合治理工程 | C24: 400 | E24: 400 | G24: 理水土流失面积10.2平方公里。配套水土保持林、封禁治理、谷坊、护岸工程 | H24: 县水利局
A25: 2-7 | B25: 共和县恰卜恰河(茶卡高速-索吉亥村段)防洪工程 | C25: 503 | E25: 503 | G25: 治理河道1.88km | H25: 县水利局
A26: 2-8 | B26: 共和县黑马河镇文巴村产业园道路及配套工程 | C26: 146 | D26: 146 | G26: 新建村级道路1.2公里，停车场等配套设施 | H26: 县扶贫开发局
A27: 2-9 | B27: 共和县黑马河镇文巴贫困村饮水安全工程 | C27: 200 | D27: 200 | G27: 修建小口机井20眼，并配套相关附属设施 | H27: 县水利局
A28: 2-10 | B28: 共和县切吉乡哇合村公路 | C28: 164 | D28: 164 | G28: 建设道路总长4.1km | H28: 县交通运输局
A29: 三 | B29: 农村生态环境改善 | C29: =SUM(D29:F29) -> 10642.64 | D29: =SUM(D30:D38) -> 8565.64 | E29: =SUM(E30:E38) -> 2077 | F29: =SUM(F30:F38) -> 0 | G29: 结合精准扶贫规划目标和下达资金建设目标任务安排 | H29: —— | I29: ——
A30: 3-1 | B30: 2018年公益林管护 | C30: 199 | D30: 199 | G30: 20.42万亩天然林管护 | H30: 县自然资源局 | I30: 全县99个行政村
A31: 3-2 | B31: 高标准造林 | C31: 132 | D31: 132 | G31: 造林0.088万亩 | H31: 县自然资源局
A32: 3-3 | B32: 造林试点补贴 | C32: 6000 | D32: 6000 | G32: 造林30万亩 | H32: 县自然资源局
A33: 3-4 | B33: 森林抚育 | C33: 200 | D33: 200 | G33: 森林抚育2万亩 | H33: 县自然资源局
A34: 3-5 | B34: 2000-2002年退耕地森林抚育 | C34: 134.64 | D34: 134.64 | G34: 森林抚育67320亩 | H34: 县自然资源局
A35: 3-6 | B35: 森林生态效益补偿 | C35: 2077 | E35: 2077 | G35: 145.32万亩国有、集体和个人林地管护及围栏封护2万米，人工造林300亩等 | H35: 县自然资源局 | I35: 各乡镇
A36: 3-7 | B36: 绿化造林资金 | C36: 500 | D36: 500 | G36: 绿化造林1561.3亩 | H36: 县自然资源局 | I36: 恰卜恰镇
A37: 3-8 | B37: 农村人居环境整治、草原全域无垃圾及村级环境卫生整治项目 | C37: 1100 | D37: 1100 | H37: 各乡镇
A38: 3-9 | B38: “厕所革命”专项 | C38: 300 | D38: 300 | H38: 县发展和改革局
A39: 四 | B39: 农村教育、医疗发展扶贫 | C39: =SUM(C40:C40) -> 0 | D39: =SUM(D40:D40) -> 0 | E39: =SUM(E40:E40) -> 0 | F39: =SUM(F40:F40) -> 0 | G39: 结合精准扶贫规划目标和下达资金建设目标任务安排 | H39: —— | I39: ——
A40: 4-1 | C40: 0
A41: 五 | B41: 农村文化、旅游发展扶贫 | C41: =SUM(D42:F42) -> 2400 | D41: =SUM(D42:D42) -> 0 | E41: =SUM(E42:E42) -> 2400 | F41: =SUM(F42:F42) -> 0
A42: 5-1 | B42: 乡村旅游扶贫项目 | C42: =SUM(D42:F42) -> 2400 | E42: 2400 | G42: 8个村 | H42: 扶贫开发局
A43: 六 | B43: 贫困区农民居住条件改善 | C43: 2581.08 | D43: =SUM(D44:D47) -> 2581.08 | E43: =SUM(E44:E47) -> 0 | F43: =SUM(F44:F47) -> 0 | G43: 结合精准扶贫规划目标和下达资金建设目标任务安排 | H43: —— | I43: ——
A44: 6-1 | B44: 高原美丽乡村建设 | C44: 900 | D44: 900 | G44: 8个村和1个寺院围墙大门改造及环境整治 | H44: 住建局及各有关乡镇
A45: 6-2 | B45: 危房改造项目 | C45: 246.08 | D45: 246.08 | G45: 危房改造166户。 | H45: 住建局及各有关乡镇 | I45: 各乡镇
A46: 6-3 | B46: 建档立卡贫困户危旧房改造 | C46: 1225 | D46: 1225 | G46: 危房改造350户。 | H46: 扶贫开发局
A47: 6-4 | B47: 残疾人无障碍通道设施改造项目 | C47: 210 | D47: 210 | H47: 县残联
A48: 七 | B48: 技能培训、金融等其他扶贫建设 | C48: =SUM(D48:F48) -> 294 | D48: =SUM(D49:D50) -> 294 | E48: =SUM(E49:E50) -> 0 | F48: =SUM(F49:F50) -> 0 | G48: 结合精准扶贫规划目标和下达资金建设目标任务安排 | H48: —— | I48: ——
A49: 7-1 | B49: 短期技能培训 | C49: =SUM(D49:F49) -> 164 | D49: 164 | H49: 县扶贫开发局
A50: 7-2 | B50: 贴息 | C50: =SUM(D50:F50) -> 130 | D50: 130 | H50: 县扶贫开发局
B51: 合 计 | C51: =SUM(C48,C43,C41,C39,C29,C18,C5) -> 27145.74 | D51: =SUM(D48,D43,D41,D39,D29,D18,D5) -> 13151.72 | E51: =SUM(E48,E43,E41,E39,E29,E18,E5) -> 13994.02 | F51: =SUM(F48,F43,F41,F39,F29,F18,F5) -> 0 | H51: —— | I51: ——

Sheet Sheet1
